Cogmind - Beta 15 @@@ ROGUE MODE // 2025.10.21 @ 06:42:10 Player: Lazz Result: Destroyed by EN-YEZ(R) with Subdweller Laser Performance ------------- Evolutions (0) 0 Regions Visited (2) 400 Robots Destroyed (4) 20 Value Destroyed (161) 161 Prototype IDs (2) 40 Alien Tech Used (0) 0 Bonus (0) 0 TOTAL SCORE: 621 Bonus ------- None Cogmind --------- Core Integrity 0/250 Matter 285/300 Energy 141/250 System Corruption 0% Temperature Cool (7) Movement Walking (120) Location -10/Subcaves Parts ------- > --- POWER (1) -------- Ion Engine > --- PROPULSION (2) --- Aluminum Leg > --- UTILITY (2) ------ Small Storage Unit > --- WEAPON (2) ------- (None) > --- INVENTORY (8) ---- Light Treads Light Treads Improved Heat Sink High-capacity Storage Unit Peak State ------------ > --- POWER ------------ Ion Engine > --- PROPULSION ------- Aluminum Leg Aluminum Leg > --- UTILITY ---------- Small Storage Unit > --- WEAPON ----------- Small Laser Light Assault Rifle > --- INVENTORY -------- Ion Engine Light Treads Light Treads Aluminum Leg Aluminum Leg Improved Heat Sink High-capacity Storage Unit EM Pulse Gun [Rating: 7] Favorites ----------- Power Ion Engine Engine Ion Engine Propulsion Aluminum Leg Leg Aluminum Leg Utility Small Storage Unit Storage Small Storage Unit Weapon Small Laser Energy Gun Small Laser Ballistic Gun Light Assault Rifle Build | -11 -10 -10 ------- Run | Yrd Mat Sub Slots Evolved . | . . . Power . | . . . Propulsion . | . . . Utility . | . . . Weapon . | . . . Parts Attached 10 | 4 2 4 Power 2 | 1 . 1 Engine 2 | 1 . 1 Core . | . . . Reactor . | . . . Propulsion 4 | 2 . 2 Treads . | . . . Leg 4 | 2 . 2 Wheel . | . . . Hover . | . . . Flight . | . . . Utility 1 | 1 . . Device . | . . . Storage 1 | 1 . . Processor . | . . . Hackware . | . . . Protection . | . . . Artifact . | . . . Weapon 3 | . 2 1 Energy Gun 2 | . 1 1 Energy Cannon . | . . . Ballistic Gun 1 | . 1 . Ballistic Cannon . | . . . Launcher . | . . . Special Weapon . | . . . Impact Weapon . | . . . Slashing Weapon . | . . . Piercing Weapon . | . . . Special Melee Weapon . | . . . Unidentified Prototypes . | . . . Parts Lost 7 | . . 7 Power 1 | . . 1 Propulsion 3 | . . 3 Utility . | . . . Weapon 3 | . . 3 Highest Loss Streak 4 | . . 4 To Critical Strikes 1 | . . 1 Average Backups 6 | 5 7 6 Power . | . 1 1 Propulsion 3 | 2 3 3 Utility 1 | . 1 2 Weapon . | 1 1 . Tool/Special . | . . . Unused Backups 6 | . 2 4 Power . | . . . Propulsion 4 | . 2 2 Utility 2 | . . 2 Weapon . | . . . Tool/Special . | . . . Average Slot Usage (%) 77 | . 84 67 Engine 13 | . 14 13 Leg 26 | . 28 24 Storage 14 | . 14 14 Energy Gun 11 | . 14 8 Ballistic Gun 10 | . 13 6 Peak Build Rating 7 | 4 7 7 Average Rating 5 | 3 6 5 On Entrance 3 | . 4 7 Naked Turns . | . . . Heaviest Build 12 | 10 12 12 Greatest Support 20 | 20 20 20 Greatest Overweight (x) . | . . . Average Overweight (x) . | . . . Largest Inventory Capacity 8 | 8 8 8 Average Capacity 7 | 7 8 8 Most Carried 8 | 8 8 8 Average Carried 6 | 5 7 6 Final Capacity 8 | 8 8 8 Final Carried 8 | 8 8 4 Class Distribution -------------------- 100% | Mutant Dominant Class ---------------- Mutant | -10/Materials Mutant | -10/Subcaves Resources | -11 -10 -10 ----------- Run | Yrd Mat Sub Matter Collected 265 | 176 89 . Remotely . | . . . Salvage Created 200 | . 89 111 Parts 10 | . 3 7 Haulers Intercepted . | . . . Recyclers Shooed . | . . . Parts Field Recycled . | . . . Retrieved Matter . | . . . Parts Self-Destructed 4 | . . 4 Prevented . | . . . Kills | -11 -10 -10 ------- Run | Yrd Mat Sub Combat Hostiles Destroyed 4 | . 2 2 Guns 4 | . 2 2 Classes Destroyed 2 | . 1 1 Grunt 2 | . 2 . Subdweller 2 | . . 2 Best Kill Streak 2 | . 2 1 Combat Bots Only 2 | . 2 1 Max Kills in Single Turn 1 | . 1 1 Gunslinging . | . . . Exploded . | . . . Melee . | . . . Uniques/NPCs Destroyed . | . . . Combat | -11 -10 -10 -------- Run | Yrd Mat Sub Hostile Shots Fired 65 | . 6 59 Missed 17 | . 1 16 Hits 48 | . 5 43 Projectile 48 | . 5 43 Critical Strikes 3 | . . 3 Damage Taken 951 | . 76 875 Core 264 | . 16 248 Absorbed by Shields . | . . . Core Remaining (%) 100 | 100 . . Volleys Fired 28 | . 6 22 Largest 2 | . 2 2 Hottest 60 | . 60 60 Shots Fired 44 | . 12 32 Gun 44 | . 12 32 Cannon . | . . . Launcher . | . . . Special . | . . . Kinetic 16 | . 6 10 Thermal 16 | . 6 10 Explosive . | . . . Electromagnetic 12 | . . 12 Robot Hit Streak 13 | . 4 13 Robot Miss Streak 1 | . 1 1 Penetration Max . | . . . Secondary Targets 1 | . . 1 Max Gunslinging Chain 1 | . . 1 Shots Hit Robots 38 | . 8 30 Core Hits 12 | . 5 7 Critical Kills . | . . . Critical Parts Destroyed . | . . . Critical Strikes . | . . . Melee Attacks . | . . . Impact . | . . . Slashing . | . . . Piercing . | . . . Sneak Attacks . | . . . Combat Hostiles . | . . . Follow-up Attacks . | . . . Damage Inflicted 371 | . 77 294 Guns 357 | . 77 280 Cannons . | . . . Explosions . | . . . Melee . | . . . Ramming 14 | . . 14 Kinetic 107 | . 33 74 Thermal 129 | . 44 85 Explosive . | . . . Electromagnetic 121 | . . 121 Impact . | . . . Slashing . | . . . Piercing . | . . . Highest Corruption . | . . . Average Corruption . | . . . Corruption Purged . | . . . Corruption Blocked . | . . . Overload Shots . | . . . Overflow Damage . | . . . Projectiles . | . . . Explosions . | . . . Melee . | . . . Knockbacks 1 | . . 1 Impact 1 | . . 1 Kinetic . | . . . Secondary . | . . . Self-Inflicted Damage . | . . . Shots . | . . . Rammed . | . . . Targets Rammed 7 | . . 7 Kicked 7 | . . 7 Crushed . | . . . Highest Temperature 85 | . 85 . Average Temperature 42 | . 42 . Received Heat Transfer 273 | . 45 228 Siege Activations . | . . . Martial Activations . | . . . Shielding Activations . | . . . Robots Disrupted . | . . . Combat Hostiles . | . . . Robots Corrupted . | . . . Combat Hostiles . | . . . Parts Fried . | . . . Impact Corruptions . | . . . Robots Melted . | . . . Combat Hostiles . | . . . Parts Melted . | . . . Heat Transferred 300 | . 100 200 Parts Sabotaged . | . . . Parts Stolen . | . . . Parts Stripped . | . . . Power Chain Reactions . | . . . Alert | -11 -10 -10 ------- Run | Yrd Mat Sub Maximum Alert Level . | . . . Low Security (%) 100 | 100 100 . Level 1 . | . . . Level 2 . | . . . Level 3 . | . . . Level 4 . | . . . Level 5 . | . . . High Security . | . . . Max Security . | . . . Peak Influence 50 | . 50 . Initial . | . . . Average 5 | . 7 . Influence Increases 55 | . 55 . Destroy 0b10 Robot/C 40 | . 40 . Destroy Leader 10 | . 10 . Successful Hack 5 | . 5 . Influence Decreases 55 | . 55 . Time Decay 55 | . 55 . Squads Dispatched . | . . . Investigation . | . . . Extermination . | . . . Reinforcement . | . . . Assault . | . . . Garrison . | . . . Intercept . | . . . Searches Triggered . | . . . Construction Impeded . | . . . Haulers Reinforced . | . . . Active Scanning Responses . | . . . Cargo Convoy Interrupts . | . . . Stealth | -11 -10 -10 --------- Run | Yrd Mat Sub Distress Signals . | . . . Communications Jammed . | . . . Distress Signals . | . . . Times Spotted 7 | . 3 4 Peak Tracking Total 3 | . 2 3 Tactical Retreats 1 | . . 1 Traps | -11 -10 -10 ------- Run | Yrd Mat Sub Traps Triggered . | . . . Indirectly . | . . . Trap Hack Attempts . | . . . Triggered . | . . . Disarmed . | . . . Reprogrammed . | . . . Reused . | . . . Traps Extracted . | . . . Installed . | . . . Triggered . | . . . Machines | -11 -10 -10 ---------- Run | Yrd Mat Sub Machines Disabled . | . . . Max in Single Turn . | . . . Machines Repaired . | . . . Machines Dismantled . | . . . Machines Sabotaged . | . . . Overloaded Fab Kills . | . . . Hacking | -11 -10 -10 --------- Run | Yrd Mat Sub Machines Accessed 1 | . 1 . Terminals 1 | . 1 . Fabricators . | . . . Repair Stations . | . . . Recycling Units . | . . . Scanalyzers . | . . . Garrison Access . | . . . Total Hacks 3 | . 3 . Successful 3 | . 3 . Failed . | . . . Catastrophic . | . . . Database Lockouts . | . . . Manual . | . . . Terminals 3 | . 3 . Fabricators . | . . . Repair Stations . | . . . Recycling Units . | . . . Scanalyzers . | . . . Garrison Access . | . . . Terminal Hacks 3 | . 3 . Prototype ID Bank 1 | . 1 . Hauler Manifests 1 | . 1 . Zone Layout 1 | . 1 . Fabricator Hacks . | . . . Repair Station Hacks . | . . . Recycling Unit Hacks . | . . . Scanalyzer . | . . . Garrison Access Hacks . | . . . Unauthorized Hacks . | . . . Terminals . | . . . Fabricators . | . . . Repair Stations . | . . . Recycling Units . | . . . Scanalyzers . | . . . Garrison Access . | . . . Data Cores Recovered . | . . . Used . | . . . Hacking Detections 1 | . 1 . Full Trace Events . | . . . Feedback Events . | . . . Feedback Blocked . | . . . Robot Schematics Acquired . | . . . Robots Built . | . . . Authchips . | . . . Time . | . . . Total Robot Build Rating . | . . . Part Schematics Acquired . | . . . Parts Built . | . . . Authchips . | . . . Time . | . . . Total Part Build Rating . | . . . Parts Repaired . | . . . Time . | . . . Parts Recycled . | . . . Recycled Matter . | . . . Retrieved Matter . | . . . Retrieved Components . | . . . Parts Scanalyzed . | . . . Part Schematics Acquired . | . . . Parts Damaged . | . . . Bothacking | -11 -10 -10 ------------ Run | Yrd Mat Sub Used RIF Installer . | . . . Robots Hacked . | . . . Non-combat . | . . . Combat . | . . . Robot Hacks Applied . | . . . Relay Couplers Released . | . . . Fabnet Peak Effective % . | . . . Robots Rewired . | . . . Allies Hacked . | . . . Hacks Repelled . | . . . Allies | -11 -10 -10 -------- Run | Yrd Mat Sub Total Allies . | . . . Largest Group . | . . . Highest-Rated Group . | . . . Highest-Rated Ally . | . . . Total Orders . | . . . Ally Attacks . | . . . Total Damage . | . . . Kills . | . . . Allies Corrupted . | . . . Allies Melted . | . . . Intel | -11 -10 -10 ------- Run | Yrd Mat Sub Active Infowar (turns) . | . . . Robot Analysis Total . | . . . Derelict Logs Recovered 1 | . . 1 Drone Launches . | . . . Drone Recoveries . | . . . Exploration | -11 -10 -10 ------------- Run | Yrd Mat Sub Turns Passed 635 | 108 325 202 Spaces Moved 333 | 84 134 115 Core 18 | 18 . . Treads . | . . . Legs 315 | 66 134 115 Wheels . | . . . Hover . | . . . Flight . | . . . Fastest Speed 50 | 50 120 120 Average Speed 116 | 105 120 120 Slowest Speed 120 | 120 120 120 Overloaded Moves . | . . . Propulsion Burnouts . | . . . Robots Hopped . | . . . Potential Cave-ins . | . . . Cave-ins Triggered . | . . . Exploration Rate (%) 13 | 5 24 10 Regions Visited 2 Branch Regions 1 Pre-discovered Areas . | . . . Known Exits Taken . | . . . Unknown Exits Taken 2 | 1 1 . Scrap Searched . | . . . Spaces Dug . | . . . Terrain Destroyed . | . . . Melee . | . . . Projectile . | . . . AOE . | . . . Terrain Rammed . | . . . Walls Destroyed . | . . . Machines Disabled . | . . . Actions | -11 -10 -10 --------- Run | Yrd Mat Sub Total 540 | 104 288 148 Wait 146 | 5 141 . Move 331 | 83 133 115 Hop . | . . . Pick Up 16 | 12 4 . Fast Attach . | . . . Attach 10 | 4 2 4 Detach . | . . . Swap . | . . . Drop 2 | . 2 . Fire 28 | . 6 22 Melee . | . . . Ram . | . . . Kick 7 | . . 7 Crush . | . . . Escape Stasis . | . . . Rewire . | . . . Trap . | . . . Miscellaneous . | . . . Route ------- -11/Scrapyard -10/Materials (discovered 3 exits: [*Min x2] / [*Sub]) -10/Subcaves History --------- Turn | Location | Event 15 | -11/Scrapyard | Discovered new exit (range 14) 109 | -11/Scrapyard | Entered Materials 114 | -10/Materials | Discovered new exit (range 16) 214 | -10/Materials | Discovered new exit (range 16) 308 | -10/Materials | Build established: Mutant 391 | -10/Materials | Discovered new exit (range 7) 434 | -10/Materials | Entered Subcaves 434 | -10/Subcaves | Learned 2 Materials zone layouts 494 | -10/Subcaves | Ambushed by Subdwellers from Twisted Machinery 506 | -10/Subcaves | Ambushed by angry Subdweller bent on revenge 534 | -10/Subcaves | Core integrity fell below 50% 547 | -10/Subcaves | Core integrity fell below 20% 581 | -10/Subcaves | Lost 4 parts (1n3w) 636 | -10/Subcaves | Destroyed by EN-YEZ(R) with Subdweller Laser Last Messages --------------- Shield. R9-V0N(R) destroyed. EN-YEZ(R) affixes Scrap Shield Fragment to Scrap Shield. EM Pulse Gun destroyed. Kicked EN-YEZ(R). Kicked EN-YEZ(R) out of the way. Subatomizers dissect the Sub. Monowheel. Kicked EN-YEZ(R). Kicked EN-YEZ(R) out of the way. EN-YEZ(R) knocked back. EN-YEZ(R) affixes Scrap Shield Fragment to Scrap Shield. Subatomizers dissect the Sub. Monowheel. Subatomizers dissect the Wheel. Aluminum Leg destroyed. Ion Engine destroyed. EN-YEZ(R) misfires. Critical hit (Destroy). Aluminum Leg destroyed. Map ----- +----------------------------------------------------+ | ????????????????????????? ??????????????????????? | | ???????????????????????? #?????????????????????? | | ?????????""????????????? ??????????????????????? | | ?????????"""???????##### #??????????????????????? | | ?????? " " """????## #??????????????????????? | | ????? """" """????# ##?????????????????????? | | ????#""""""""#????# #?????????????????????? | | ????# """""""##??? ##?? ???????????????? | | ?????# """ ""#???? ## ???????????????? | | ???????#" #????? ???????????????? | | ????#### #####?# ???????????????? | | ??### " ### ??????????????? | | ?## "&= " " ?????????????????? | | ## %% # ##???????????????????????? | | % ! ##" # #????????????????????????? | | ####### ##???????????????????????? | | # #?????# ###?????????????????????? | | ## ####?????## #?????????????????????? | | ?#########?????????##=% ##????????????????????? | | ????????????????????# = #????????????????????? | | ???????????????????### ####????????????????????? | | ?????????????????### # #?????????????????????? | | ?????????????????#""" ##?????????????????????? | | ?????????????????##""### ##?????????????????????? | | ?????????????????# ??## #?????????????????????? | | ?????????????????# ##?##@ #?????????????????????? | | ?????????????????#" ### ##?????????????????????? | | ????????????????##"" ## #?????????????????????? | | ????????????????# ### #?????????????????????? | | ????????????????# R##?????????????????????? | | ????????????????## ### #?????????????????????? | | ?????????????????## #?# ###???????????????????? | | ??????????????????## #### #???????????????????? | | ???????????????????##### #???????????????????? | | ??????????????????????# ##???????????????????? | | ??????????????????????### ##????????????????????? | | ????????????????????????####?????????????????????? | | ?????????????????????????????????????????????????? | | ?????????????????????????????????????????????????? | | ?????????????????????????????????????????????????? | | ?????????????????????????????????????????????????? | | ?????????????????????????????????????????????????? | | ?????????????????????????????????????????????????? | | ?????????????????????????????????????????????????? | | ?????????????????????????????????????????????????? | | ?????????????????????????????????????????????????? | | ?????????????????????????????????????????????????? | | ?????????????????????????????????????????????????? | | ?????????????????????????????????????????????????? | | ?????????????????????????????????????????????????? | +----------------------------------------------------+ Best States ------------- Heat Dissipation 25 Energy Generation 10 Energy Capacity 250 Matter Stores 300 Matter Capacity 300 Sight Range 16 Terrain Scan Density 10 Evasion (%) 55 Item Schematics ----------------- None Robot Schematics ------------------ None Fabricated ------------ Nothing Repaired ---------- Nothing Alien Tech Used ----------------- None Achievements -------------- None Challenges ------------ None Game ------ Seed MasterShrapnelBarrier Manual? 0 Play Time 00:14:03 Cumulative 10.8 hours Start 2025.10.21 @ 06:29:07 End 2025.10.21 @ 06:42:10 Sessions 1 Manual Loads 0 Difficulty Rogue Special Mode None Game No. 16 Rogue 16 Adventurer 0 Explorer 0 Win Type - Total 0 Types 0/0/0/0/0/0/0/0/0/0 Lore% 8 Gallery% 13 Achievement% 15 Wizard Run 0 Options --------- Layout 2 ASCII 0 Keyboard 0 Movement Mouse Keybinds 0 Fullscreen 1 Font 16/SmallcapsGlow Map View 25x24 Zoom Use 99% Tactical HUD 0 Map Filters NONE Filters NONE Steam SD RUN: aef1fd9b-aef4-4d2d-a653-2b7b714fa9fd